fUSD/lending_fUSD_20240606
["ID","MTS","AMOUNT","RATE_DAILY","PERIOD"]
[328698121,1717716679431,-992.33,0.00029863,4]
[328698122,1717716679441,-500.0,0.00029863,4]
[328698123,1717716679450,-992.33,0.00029863,4]
[328698124,1717716679460,-500.0,0.00029863,4]
[328698125,1717716679469,-500.0,0.00029863,4]
[328698126,1717716679478,-500.0,0.00029863,2]
[328698127,1717716679488,-992.33,0.00029863,4]
[328698128,1717716679497,-500.0,0.00029863,4]
[328698129,1717716679507,-500.0,0.00029863,4]
[328698130,1717716679516,-992.33,0.00029863,4]
[328698131,1717716679525,-500.0,0.00029863,2]
[328698132,1717716679535,-500.0,0.00029863,4]
[328698133,1717716679544,-500.0,0.00029863,2]
[328698134,1717716679555,-500.0,0.00029863,4]
[328698135,1717716679566,-992.33,0.00029863,4]
[328698136,1717716679575,-500.0,0.00029863,4]
[328698137,1717716679585,-500.0,0.00029863,2]
[328698138,1717716679595,-500.0,0.00029863,4]
[328698139,1717716679606,-500.0,0.00029863,4]
[328698140,1717716679616,-500.0,0.00029863,4]
[328698141,1717716679626,-992.33,0.00029863,4]
[328698142,1717716679638,-500.0,0.00029863,4]
[328698143,1717716679649,-500.0,0.00029863,4]
[328698144,1717716679660,-500.0,0.00029863,2]
[328698145,1717716679670,-992.33,0.00029863,4]
[328698146,1717716679680,-500.0,0.00029863,4]
[328698147,1717716679690,-174.82,0.00029863,4]
[328698148,1717716679700,-403.0511592,0.00029863,2]
[328698149,1717716679710,-266.169416,0.00029863,7]
[328698150,1717716679720,-500.0,0.00029863,4]
[328698151,1717716679730,-500.0,0.00029863,4]
[328698152,1717716679741,-1185.05,0.00029863,4]
[328698153,1717716679752,-500.0,0.00029863,4]
[328698154,1717716679762,-992.33,0.00029863,4]
[328698155,1717716679773,-266.169416,0.00029863,7]
[328698156,1717716679783,-437.11011358,0.00029863,4]
[328698157,1717716679794,-500.0,0.00029863,4]
[328698158,1717716679804,-500.0,0.00029863,4]
[328698159,1717716679814,-992.33,0.00029863,4]
[328698160,1717716679824,-536.86451775,0.00029863,4]
[328698161,1717716679834,-1185.05,0.00029863,4]
[328698162,1717716679844,-266.169416,0.00029863,7]
[328698163,1717716679855,-500.0,0.00029863,4]
[328698164,1717716679865,-992.33,0.00029863,4]
[328698165,1717716679875,-500.0,0.00029863,4]
[328698166,1717716679885,-1185.05,0.00029863,4]
[328698167,1717716679895,-266.169416,0.00029863,7]
[328698168,1717716679905,-500.0,0.00029863,4]
[328698169,1717716679915,-992.33,0.00029863,4]
[328698170,1717716679925,-1185.05,0.00029863,4]
[328698171,1717716679935,-258.58,0.00029863,4]
[328698172,1717716679945,-603.64,0.00029863,4]
[328698173,1717716679955,-266.169416,0.00029863,7]
[328698174,1717716679964,-992.33,0.00029863,4]
[328698175,1717716679974,-1185.05,0.00029863,4]
[328698176,1717716679983,-1185.05,0.00029863,4]
[328698177,1717716679993,-500.0,0.00029863,4]
[328698178,1717716680003,-151.0,0.00029863,7]
[328698179,1717716680012,-1185.05,0.00029863,4]
[328698180,1717716680022,-500.0,0.00029863,4]
[328698181,1717716680035,-370.0,0.00029863,4]
[328698182,1717716680045,-151.0,0.00029863,7]
[328698183,1717716680054,-1185.05,0.00029863,4]
[328698184,1717716680064,-500.0,0.00029863,4]
[328698185,1717716680075,-500.0,0.00029863,4]
[328698186,1717716680084,-212.357018,0.00029863,7]
[328698187,1717716680093,-1185.05,0.00029863,4]
[328698188,1717716680104,-500.0,0.00029863,4]
[328698189,1717716680114,-500.0,0.00029863,4]
[328698190,1717716680123,-1185.05,0.00029863,4]
[328698191,1717716680132,-500.0,0.00029863,4]
[328698192,1717716680142,-500.0,0.00029863,4]
[328698193,1717716680151,-500.0,0.00029863,4]
[328698194,1717716680164,-500.0,0.00029863,4]
[328698195,1717716680173,-1185.05,0.00029863,4]
[328698196,1717716680183,-520.09910313,0.00029863,4]
[328698197,1717716680194,-500.0,0.00029863,4]
[328698198,1717716680204,-500.0,0.00029863,4]
[328698199,1717716680214,-500.0,0.00029863,4]
[328698200,1717716680226,-612.08031142,0.00029863,4]
[328698201,1717716680237,-1185.05,0.00029863,4]
[328698202,1717716680248,-363.40316696,0.00029863,4]
[328698203,1717716680258,-1185.05,0.00029863,4]
[328698204,1717716680268,-266.169416,0.00029863,7]
[328698205,1717716680279,-1185.05,0.00029863,4]
[328698206,1717716680289,-266.169416,0.00029863,7]
[328698207,1717716680299,-1185.05,0.00029863,4]
[328698208,1717716680310,-1185.05,0.00029863,4]
[328698209,1717716680321,-266.169416,0.00029863,7]
[328698210,1717716680331,-266.169416,0.00029863,7]
[328698211,1717716680340,-500.0,0.00029863,4]
[328698212,1717716680351,-1185.05,0.00029863,4]
[328698213,1717716680360,-500.0,0.00029863,4]
[328698214,1717716680370,-266.169422,0.00029863,7]
[328698215,1717716680381,-500.0,0.00029863,4]
[328698216,1717716680391,-500.0,0.00029863,4]
[328698217,1717716680401,-500.0,0.00029863,4]
[328698218,1717716680411,-500.0,0.00029863,4]
[328698219,1717716680420,-500.0,0.00029863,4]
[328698220,1717716680430,-642.16549267,0.00029863,4]
[328698221,1717716680440,-165.05152228,0.00029863,4]
[328698222,1717716680450,-500.0,0.00029863,4]
[328698223,1717716680460,-613.84277176,0.00029863,4]
[328698224,1717716680470,-500.0,0.00029863,4]
[328698225,1717716680480,-500.0,0.00029863,4]
[328698226,1717716680490,-500.0,0.00029863,4]
[328698227,1717716680500,-500.0,0.00029863,4]
[328698228,1717716680510,-500.0,0.00029863,4]
[328698229,1717716680520,-500.0,0.00029863,4]
[328698230,1717716680531,-500.0,0.00029863,4]
[328698231,1717716680540,-500.0,0.00029863,4]
[328698232,1717716680551,-500.0,0.00029863,4]
[328698233,1717716680560,-500.0,0.00029863,4]
[328698234,1717716680570,-500.0,0.00029863,4]
[328698235,1717716680580,-518.09,0.00029863,4]
[328698236,1717716680591,-500.0,0.00029863,4]
[328698237,1717716680601,-500.0,0.00029863,4]
[328698238,1717716680611,-500.0,0.00029863,4]
[328698239,1717716680621,-500.0,0.00029863,4]
[328698240,1717716680631,-500.0,0.00029863,4]
[328698241,1717716680640,-500.0,0.00029863,4]
[328698242,1717716680652,-500.0,0.00029863,4]
[328698243,1717716680662,-500.0,0.00029863,4]
[328698244,1717716680671,-500.0,0.00029863,4]
[328698245,1717716680682,-248.62885997,0.00029863,4]
[328698246,1717716680692,-500.0,0.00029863,4]
[328698247,1717716680702,-500.0,0.00029863,4]
[328698248,1717716680712,-500.0,0.00029863,4]
[328698249,1717716680722,-500.0,0.00029863,4]
[328698250,1717716680732,-500.0,0.00029863,4]
[328698251,1717716680743,-500.0,0.00029863,4]
[328698252,1717716680754,-500.0,0.00029863,4]
[328698253,1717716680763,-500.0,0.00029863,4]
[328698254,1717716680774,-507.39515255,0.00029863,4]
[328698255,1717716680784,-586.22,0.00029863,4]
[328698256,1717716680794,-1276.5,0.00029863,4]
[328698257,1717716680803,-500.0,0.00029863,4]
[328698258,1717716680813,-500.0,0.00029863,4]
[328698259,1717716680823,-1276.5,0.00029863,4]
[328698260,1717716680833,-500.0,0.00029863,4]
[328698261,1717716680843,-500.0,0.00029863,4]
[328698262,1717716680852,-1276.5,0.00029863,4]
[328698263,1717716680862,-500.0,0.00029863,4]
[328698264,1717716680872,-500.0,0.00029863,4]
[328698265,1717716680882,-500.0,0.00029863,4]
[328698266,1717716680892,-500.0,0.00029863,4]
[328698267,1717716680903,-500.0,0.00029863,4]
[328698268,1717716680912,-500.0,0.00029863,4]
[328698269,1717716680922,-1276.5,0.00029863,4]
[328698270,1717716680932,-500.0,0.00029863,4]
[328698271,1717716680942,-500.0,0.00029863,4]
[328698272,1717716680952,-500.0,0.00029863,4]
[328698273,1717716680962,-500.0,0.00029863,4]
[328698274,1717716680972,-500.0,0.00029863,4]
[328698275,1717716680981,-1276.5,0.00029863,4]
[328698276,1717716680991,-412.19887001,0.00029863,4]
[328698277,1717716681001,-500.0,0.00029863,4]
[328698278,1717716681011,-500.0,0.00029863,4]
[328698279,1717716681023,-508.68446954,0.00029863,4]
[328698280,1717716681035,-1276.5,0.00029863,4]
[328698281,1717716681045,-500.0,0.00029863,4]
[328698282,1717716681055,-1292.74,0.00029863,4]
[328698283,1717716681066,-503.46,0.00029863,4]
[328698284,1717716681075,-500.0,0.00029863,4]
[328698285,1717716681085,-1276.5,0.00029863,4]
[328698286,1717716681095,-1292.74,0.00029863,4]
[328698287,1717716681108,-500.0,0.00029863,4]
[328698288,1717716681118,-500.0,0.00029863,4]
[328698289,1717716681128,-1276.5,0.00029863,4]
[328698290,1717716681138,-500.0,0.00029863,4]
[328698291,1717716681148,-500.0,0.00029863,4]
[328698292,1717716681158,-1292.74,0.00029863,4]
[328698293,1717716681167,-1276.5,0.00029863,4]
[328698294,1717716681177,-500.0,0.00029863,4]
[328698295,1717716681186,-500.0,0.00029863,4]
[328698296,1717716681196,-500.0,0.00029863,4]
[328698297,1717716681205,-1292.74,0.00029863,4]
[328698298,1717716681215,-1276.5,0.00029863,4]
[328698299,1717716681225,-500.0,0.00029863,4]
[328698300,1717716681235,-500.0,0.00029863,4]
[328698301,1717716681244,-500.0,0.00029863,4]
[328698302,1717716681255,-1292.74,0.00029863,4]
[328698303,1717716681266,-1276.5,0.00029863,4]
[328698304,1717716681276,-500.0,0.00029863,4]
[328698305,1717716681285,-500.0,0.00029863,4]
[328698306,1717716681295,-1292.74,0.00029863,4]
[328698307,1717716681304,-500.0,0.00029863,4]
[328698308,1717716681313,-1276.5,0.00029863,4]
[328698309,1717716681323,-500.0,0.00029863,4]
[328698310,1717716681332,-500.0,0.00029863,4]
[328698311,1717716681342,-528.28812496,0.00029863,4]
[328698312,1717716681351,-500.0,0.00029863,4]
[328698313,1717716681361,-314.77467748,0.00029863,2]
[328698314,1717716681370,-1292.74,0.00029863,4]
[328698315,1717716681380,-1276.5,0.00029863,4]
[328698316,1717716681389,-500.0,0.00029863,4]
[328698317,1717716681399,-215.78357984,0.00029863,4]
[328698318,1717716681408,-500.0,0.00029863,4]
[328698319,1717716681418,-1292.74,0.00029863,4]
[328698320,1717716681428,-150.0,0.00029863,2]
[328698321,1717716681437,-150.0,0.00029863,2]
[328698322,1717716681446,-150.0,0.00029863,2]
[328698323,1717716681456,-150.0,0.00029863,2]
[328698324,1717716681465,-150.0,0.00029863,2]
[328698325,1717716681475,-150.0,0.00029863,2]
[328698326,1717716681484,-150.0,0.00029863,2]
[328698327,1717716681494,-150.0,0.00029863,2]
[328698328,1717716681505,-150.0,0.00029863,2]
[328698329,1717716681515,-150.0,0.00029863,2]
[328698330,1717716681525,-300.0,0.00029863,2]
[328698331,1717716681535,-604.81287163,0.0002988,20]
[328698332,1717716681545,-1292.5,0.0002988,15]
[328698333,1717716681554,-794.76,0.0002988,15]
[328698334,1717716681563,-8455.29134922,0.00029887,2]
[328698335,1717716681573,-361.9335139,0.00029888,2]
[328698336,1717716681583,-1610.28,0.0002989,4]
[328698337,1717716681593,-500.0,0.0002989,4]
[328698338,1717716681602,-800.84,0.0002989,4]
[328698339,1717716681612,-1039.28,0.0002989,4]
[328698340,1717716681622,-622.71,0.0002989,4]
[328698341,1717716681632,-515.84,0.0002989,4]
[328698342,1717716681642,-500.0,0.0002989,4]
[328698343,1717716681652,-1291.0,0.0002989,15]
[328698344,1717716681662,-601.54,0.0002989,4]
[328698345,1717716681671,-500.0,0.0002989,4]
[328698346,1717716681680,-994.96,0.0002989,4]
[328698347,1717716681690,-602.19,0.0002989,4]
[328698348,1717716681700,-785.0,0.0002989,15]
[328698349,1717716681709,-22029.0,0.0002989,4]
[328698350,1717716681720,-153.97321569,0.00029895,2]
[328698351,1717716681729,-500.0,0.00029899,4]
[328698352,1717716681739,-500.0,0.00029899,4]
[328698353,1717716681748,-500.0,0.00029899,4]
[328698354,1717716681758,-500.0,0.00029899,4]
[328698355,1717716681769,-721.36,0.00029899,4]
[328698356,1717716681779,-500.0,0.00029899,4]
[328698357,1717716681790,-651.59,0.00029899,4]
[328698358,1717716681800,-500.0,0.00029899,4]
[328698359,1717716681810,-500.0,0.00029899,4]
[328698360,1717716681820,-500.0,0.00029899,4]
[328698361,1717716681829,-500.0,0.00029899,4]
[328698362,1717716681839,-500.0,0.00029899,4]
[328698363,1717716681850,-554.01,0.00029899,4]
[328698364,1717716681862,-601.79,0.00029899,4]
[328698365,1717716681872,-500.0,0.00029899,4]
[328698366,1717716681881,-500.0,0.00029899,4]
[328698367,1717716681891,-500.0,0.00029899,4]
[328698368,1717716681901,-508.70372821,0.00029899,4]
[328698369,1717716681911,-500.0,0.00029899,4]
[328698370,1717716681922,-500.0,0.00029899,4]
[328698371,1717716682063,-169.00998555,0.00029899,2]
[328698372,1717716682073,-637.04,0.00029899,4]
[328698373,1717716682083,-1476.68,0.00029899,4]
[328698374,1717716682093,-570.78,0.00029899,4]
[328698375,1717716682104,-928.59,0.00029899,4]
[328698376,1717716682114,-1275.31,0.00029899,4]
[328698377,1717716682124,-500.0,0.00029899,4]
[328698378,1717716682134,-3016.04,0.00029899,4]
[328698379,1717716682144,-1185.05,0.00029899,4]
[328698380,1717716682154,-160.0,0.000299,2]
[328698381,1717716682163,-32296.70753145,0.000299,7]
[328698382,1717716682173,-690.0,0.000299,2]
[328698383,1717716682184,-151.0,0.000299,7]
[328698384,1717716682193,-151.0,0.000299,7]
[328698385,1717716682204,-3903.38636964,0.000299,2]
[328698386,1717716682214,-9864.93807421,0.000299,15]
[328698387,1717716682225,-255.291817,0.000299,7]
[328698388,1717716682235,-255.291825,0.000299,7]
[328698389,1717716682246,-353.19981527,0.000299,2]
[328698390,1717716682255,-2331.43666651,0.000299,2]
[328698391,1717716682265,-891.84275618,0.0002991,2]
[328698392,1717716682275,-316.9236107,0.00029913,2]
[328698393,1717716682286,-345.49015517,0.00029914,2]
[328698394,1717716682295,-345.49015517,0.00029926,2]
[328698395,1717716682305,-165.87406651,0.00029927,2]
[328698396,1717716682314,-153.97321569,0.00029928,2]
[328698397,1717716682324,-1442.40372715,0.0002995,2]
[328698398,1717716682333,-154.43087315,0.00029953,2]
[328698399,1717716682343,-1000.0,0.0002997,2]
[328698400,1717716682354,-1000.0,0.0002997,2]
[328698401,1717716682363,-1000.0,0.0002997,2]
[328698402,1717716682373,-150.80516856,0.00029972,2]
[328698403,1717716682383,-165.07057326,0.00029973,30]
[328698404,1717716682392,-500.0,0.00029978,4]
[328698405,1717716682402,-174.54629313,0.00029978,4]
[328698406,1717716682411,-416.03467478,0.00029978,4]
[328698407,1717716682420,-651.48,0.00029978,4]
[328698408,1717716682429,-500.0,0.00029978,4]
[328698409,1717716682439,-556.6,0.00029978,4]
[328698410,1717716682448,-500.0,0.00029978,4]
[328698411,1717716682457,-6378.43,0.00029978,4]
[328698412,1717716682467,-766.97,0.00029978,4]
[328698413,1717716682476,-151.0,0.00029978,7]
[328698414,1717716682486,-151.0,0.00029978,7]
[328698415,1717716682496,-519.69,0.00029978,4]
[328698416,1717716682506,-1342.08,0.00029978,4]
[328698417,1717716682515,-500.0,0.00029978,4]
[328698418,1717716682525,-605.45,0.00029978,4]
[328698419,1717716682535,-1009.46,0.00029978,4]
[328698420,1717716682545,-721.55,0.00029978,4]
[328698421,1717716682555,-500.0,0.00029978,4]
[328698422,1717716682565,-533.25,0.00029978,4]
[328698423,1717716682575,-500.0,0.00029978,4]
[328698424,1717716682585,-1036.16,0.00029978,4]
[328698425,1717716682596,-1187.67,0.00029978,4]
[328698426,1717716682606,-1115.4,0.00029978,4]
[328698427,1717716682615,-1816.79,0.00029978,4]
[328698428,1717716682625,-1066.55,0.00029978,4]
[328698429,1717716682634,-935.33,0.00029978,4]
[328698430,1717716682643,-696.12,0.00029978,4]
[328698431,1717716682653,-524.61,0.00029978,4]
[328698432,1717716682662,-895.41,0.00029978,4]
[328698433,1717716682671,-934.22,0.00029978,4]
[328698434,1717716682681,-500.0,0.00029978,4]
[328698435,1717716682691,-782.73,0.00029978,4]
[328698436,1717716682700,-973.4,0.00029978,4]
[328698437,1717716682710,-500.0,0.00029978,4]
[328698438,1717716682719,-500.0,0.00029978,4]
[328698439,1717716682729,-402.7477,0.00029978,4]
[328698440,1717716682739,-500.0,0.00029978,4]
[328698441,1717716682748,-500.0,0.00029978,4]
[328698442,1717716682759,-500.0,0.00029978,4]
[328698443,1717716682771,-683.51,0.00029978,4]
[328698444,1717716682781,-500.0,0.00029978,4]
[328698445,1717716682791,-500.0,0.00029978,4]
[328698446,1717716682800,-835.37,0.00029978,4]
[328698447,1717716682810,-500.0,0.00029978,4]
[328698448,1717716682820,-225.501072,0.00029979,7]
[328698449,1717716682829,-225.501072,0.00029979,7]
[328698450,1717716682839,-18334.8344425,0.00029979,2]
[328698451,1717716682849,-14587.7174955,0.00029979,2]
[328698452,1717716682858,-10840.6005485,0.00029979,2]
[328698453,1717716682867,-7093.4836015,0.00029979,2]
[328698454,1717716682877,-3346.3666546,0.00029979,2]
[328698455,1717716682886,-9804.8642477,0.00029979,2]
[328698456,1717716682896,-7801.0297925,0.00029979,2]
[328698457,1717716682905,-5797.1953374,0.00029979,2]
[328698458,1717716682915,-3793.3608822,0.00029979,2]
[328698459,1717716682924,-1789.5264271,0.00029979,2]
[328698460,1717716682934,-1519.1862584,0.00029979,2]
[328698461,1717716682943,-1208.7079395,0.00029979,2]
[328698462,1717716682952,-898.2296206,0.00029979,2]
[328698463,1717716682962,-587.7513018,0.00029979,2]
[328698464,1717716682971,-277.2729829,0.00029979,2]
[328698465,1717716682980,-5639.99704212,0.0002999,5]
[328698466,1717716682990,-208.0,0.0002999,2]
[328698467,1717716682999,-772.76,0.00029996,4]
[328698468,1717716683009,-4507.62,0.00029996,4]
[328698469,1717716683019,-728.27,0.00029996,4]
[328698470,1717716683032,-631.06,0.00029996,4]
[328698471,1717716683042,-2318.17,0.00029996,4]
[328698472,1717716683051,-1284.71,0.00029996,4]
[328698473,1717716683060,-1716.01,0.00029996,4]
[328698474,1717716683071,-1265.08,0.00029996,4]
[328698475,1717716683080,-940.43,0.00029996,4]
[328698476,1717716683089,-705.83,0.00029996,4]
[328698477,1717716683101,-2380.4,0.00029996,4]
[328698478,1717716683111,-1668.07,0.00029996,4]
[328698479,1717716683120,-546.45,0.00029996,4]
[328698480,1717716683130,-1412.68,0.00029996,4]
[328698481,1717716683139,-1411.7,0.00029996,4]
[328698482,1717716683149,-7064.95,0.00029996,4]
[328698483,1717716683158,-500.0,0.00029996,4]
[328698484,1717716683167,-1035.28,0.00029996,4]
[328698485,1717716683176,-781.82,0.00029996,4]
[328698486,1717716683185,-2402.46,0.00029996,4]
[328698487,1717716683195,-1662.74,0.00029996,4]
[328698488,1717716683204,-1109.14,0.00029996,4]
[328698489,1717716683214,-992.33,0.00029996,4]
[328698490,1717716683224,-500.0,0.00029997,4]
[328698491,1717716683233,-502.61,0.00029997,4]
[328698492,1717716683243,-500.0,0.00029997,4]
[328698493,1717716683253,-500.0,0.00029997,4]
[328698494,1717716683262,-721.36,0.00029997,4]
[328698495,1717716683272,-500.0,0.00029997,4]
[328698496,1717716683281,-651.59,0.00029997,4]
[328698497,1717716683290,-1610.28,0.00029997,4]
[328698498,1717716683300,-500.0,0.00029997,4]
[328698499,1717716683309,-500.0,0.00029997,4]
[328698500,1717716683318,-500.0,0.00029997,4]
[328698501,1717716683327,-500.0,0.00029997,4]
[328698502,1717716683336,-500.0,0.00029997,4]
[328698503,1717716683346,-554.01,0.00029997,4]
[328698504,1717716683355,-500.0,0.00029997,4]
[328698505,1717716683364,-601.79,0.00029997,4]
[328698506,1717716683374,-500.0,0.00029997,4]
[328698507,1717716683383,-800.84,0.00029997,4]
[328698508,1717716683393,-500.0,0.00029997,4]
[328698509,1717716683403,-500.0,0.00029997,4]
[328698510,1717716683412,-500.0,0.00029997,4]
[328698511,1717716683421,-586.56912386,0.00029997,4]
[328698512,1717716683432,-1039.28,0.00029997,4]
[328698513,1717716683441,-515.84,0.00029997,4]
[328698514,1717716683451,-500.0,0.00029997,4]
[328698515,1717716683461,-601.54,0.00029997,4]
[328698516,1717716683471,-500.0,0.00029997,4]
[328698517,1717716683480,-994.96,0.00029997,4]
[328698518,1717716683490,-602.19,0.00029997,4]
[328698519,1717716683499,-155.24195711,0.00029998,2]
[328698520,1717716683509,-742.55272188,0.00029998,2]
[328698521,1717716683518,-242.98912964,0.00029998,2]
[328698522,1717716683528,-7600.0,0.00029998,2]
[328698523,1717716683537,-1486.22934269,0.00029998,2]
[328698524,1717716683547,-237.31814666,0.00029998,2]
[328698525,1717716683556,-3888.23499441,0.00029998,2]
[328698526,1717716683566,-1014.40089718,0.00029998,2]
[328698527,1717716683575,-1068.82325335,0.00029998,2]
[328698528,1717716683586,-181.12479512,0.00029998,2]
[328698529,1717716683595,-377.9482928,0.00029998,2]
[328698530,1717716683605,-364.23895739,0.00029998,2]
[328698531,1717716683614,-973.64026678,0.00029998,2]
[328698532,1717716683623,-302.25560307,0.00029998,2]
[328698533,1717716683633,-2480.25747293,0.00029998,2]
[328698534,1717716683642,-163.69880593,0.00029998,2]
[328698535,1717716683652,-4573.024,0.00029998,2]
[328698536,1717716683661,-155.0,0.00029998,2]
[328698537,1717716683670,-250.12031156,0.00029998,2]
[328698538,1717716683679,-220.72675912,0.00029998,2]
[328698539,1717716683689,-234.24959519,0.00029998,2]
[328698540,1717716683698,-236.1339612,0.00029998,2]
[328698541,1717716683708,-744.77764368,0.00029998,2]
[328698542,1717716683718,-306.92224248,0.00029998,2]
[328698543,1717716683727,-155.0,0.00029998,2]
[328698544,1717716683736,-201.48986089,0.00029998,2]
[328698545,1717716683746,-168.64898794,0.00029998,2]
[328698546,1717716683756,-4216.16367396,0.00029998,2]
[328698547,1717716683765,-157.14302958,0.00029998,2]
[328698548,1717716683775,-155.0,0.00029998,2]
[328698549,1717716683786,-156.14040432,0.00029998,2]
[328698550,1717716683795,-156.01992126,0.00029998,2]
[328698551,1717716683806,-229.72573414,0.00029998,2]
[328698552,1717716683816,-1388.61702236,0.00029998,2]
[328698553,1717716683826,-407.04296718,0.00029998,2]
[328698554,1717716683838,-410.5918966,0.00029998,2]
[328698555,1717716683848,-6764.48938533,0.00029998,2]
[328698556,1717716683859,-785.08586126,0.00029998,2]
[328698557,1717716683870,-5000.0,0.00029998,2]
[328698558,1717716683880,-2366.67503742,0.00029998,2]
[328698559,1717716683890,-1065.50723341,0.00029998,2]
[328698560,1717716683900,-155.33073223,0.00029998,2]
[328698561,1717716683911,-155.0,0.00029998,2]
[328698562,1717716683923,-155.40824956,0.00029998,2]
[328698563,1717716683934,-335.51640089,0.00029998,2]
[328698564,1717716683945,-269.0156115,0.00029998,2]
[328698565,1717716683956,-234.70114228,0.00029998,2]
[328698566,1717716683965,-155.0,0.00029998,2]
[328698567,1717716683975,-2776.41135381,0.00029998,2]
[328698568,1717716683986,-772.76,0.00029998,4]
[328698569,1717716683996,-4507.62,0.00029998,4]
[328698570,1717716684005,-728.27,0.00029998,4]
[328698571,1717716684015,-631.06,0.00029998,4]
[328698572,1717716684027,-2318.17,0.00029998,4]
[328698573,1717716684037,-1284.71,0.00029998,4]
[328698574,1717716684047,-1716.01,0.00029998,4]
[328698575,1717716684056,-1265.08,0.00029998,4]
[328698576,1717716684067,-637.04,0.00029998,4]
[328698577,1717716684077,-637.04,0.00029998,4]
[328698578,1717716684086,-637.04,0.00029998,4]
[328698579,1717716684096,-637.04,0.00029998,4]
[328698580,1717716684107,-637.04,0.00029998,4]
[328698581,1717716684116,-637.21864797,0.00029998,4]
[328698582,1717716684126,-940.43,0.00029998,4]
[328698583,1717716684135,-705.83,0.00029998,4]
[328698584,1717716684145,-2380.4,0.00029998,4]
[328698585,1717716684154,-1668.07,0.00029998,4]
[328698586,1717716684163,-1476.68,0.00029998,4]
[328698587,1717716684172,-1476.68,0.00029998,4]
[328698588,1717716684182,-1476.68,0.00029998,4]
[328698589,1717716684191,-1476.68,0.00029998,4]
[328698590,1717716684200,-1476.68,0.00029998,4]
[328698591,1717716684210,-1476.78716956,0.00029998,4]
[328698592,1717716684220,-546.45,0.00029998,4]
[328698593,1717716684230,-570.78,0.00029998,4]
[328698594,1717716684239,-570.78,0.00029998,4]
[328698595,1717716684249,-570.78,0.00029998,4]
[328698596,1717716684258,-570.78,0.00029998,4]
[328698597,1717716684267,-570.78,0.00029998,4]
[328698598,1717716684276,-570.80144041,0.00029998,4]
[328698599,1717716684286,-1412.68,0.00029998,4]
[328698600,1717716684296,-1411.7,0.00029998,4]
[328698601,1717716684305,-928.59,0.00029998,4]
[328698602,1717716684315,-928.59,0.00029998,4]
[328698603,1717716684324,-928.59,0.00029998,4]
[328698604,1717716684334,-928.59,0.00029998,4]
[328698605,1717716684343,-928.59,0.00029998,4]
[328698606,1717716684352,-928.64,0.00029998,4]
[328698607,1717716684362,-7064.95,0.00029998,4]
[328698608,1717716684372,-500.0,0.00029998,4]
[328698609,1717716684382,-1035.28,0.00029998,4]
[328698610,1717716684391,-1275.31,0.00029998,4]
[328698611,1717716684400,-1275.31,0.00029998,4]
[328698612,1717716684410,-1275.31,0.00029998,4]
[328698613,1717716684419,-1275.31,0.00029998,4]
[328698614,1717716684429,-1275.31,0.00029998,4]
[328698615,1717716684438,-1275.45968312,0.00029998,4]
[328698616,1717716684448,-781.82,0.00029998,4]
[328698617,1717716684458,-2402.46,0.00029998,4]
[328698618,1717716684468,-500.0,0.00029998,4]
[328698619,1717716684478,-500.0,0.00029998,4]
[328698620,1717716684487,-500.0,0.00029998,4]